[Event "Titled Tuesday Blitz January 03 Late 2023"]
[White "Hernandez Sanchez, Elvis De La Caridad"]
[Black "Della Corte, Alessandro"]
[WhiteFideId "6400353"]
[BlackFideId "813540"]
[WhiteElo "2243"]
[BlackElo "2160"]
[Result "0-1"]
[Round "11"]
[TimeControl "180+2"]
[Date "2023.01.03"]
[WhiteClock "0:00:05"]
[BlackClock "0:01:13"]

1. e4 {[%clk 0:02:58]}  d5 {[%clk 0:02:59]} 2. exd5 {[%clk 0:02:57]}  Qxd5 {[%clk 0:03:00]} 3. Nc3 {[%clk 0:02:57]}  Qd6 {[%clk 0:02:59]} 4. g3 {[%clk 0:02:39]}  Nf6 {[%clk 0:02:57]} 5. Bg2 {[%clk 0:02:39]}  c6 {[%clk 0:02:58]} 6. d4 {[%clk 0:02:33]}  Bg4 {[%clk 0:02:56]} 7. f3 {[%clk 0:02:28]}  Bf5 {[%clk 0:02:55]} 8. Nge2 {[%clk 0:02:25]}  e6 {[%clk 0:02:56]} 9. O-O {[%clk 0:02:22]}  Nbd7 {[%clk 0:02:55]} 10. Bf4 {[%clk 0:02:18]}  Qb4 {[%clk 0:02:55]} 11. Rb1 {[%clk 0:02:10]}  Be7 {[%clk 0:02:52]} 12. a3 {[%clk 0:02:09]}  Qb6 {[%clk 0:02:51]} 13. b4 {[%clk 0:02:08]}  O-O {[%clk 0:02:50]} 14. g4 {[%clk 0:02:02]}  Bg6 {[%clk 0:02:41]} 15. h4 {[%clk 0:01:49]}  h5 {[%clk 0:02:36]} 16. Ng3 {[%clk 0:01:35]}  Bxc2 {[%clk 0:02:13]} 17. Qd2 {[%clk 0:01:17]}  Bxb1 {[%clk 0:02:11]} 18. Rxb1 {[%clk 0:01:18]}  hxg4 {[%clk 0:02:04]} 19. fxg4 {[%clk 0:01:18]}  Nxg4 {[%clk 0:02:05]} 20. Bh3 {[%clk 0:01:14]}  Ndf6 {[%clk 0:02:02]} 21. h5 {[%clk 0:01:12]}  Rad8 {[%clk 0:01:58]} 22. Rd1 {[%clk 0:01:10]}  a5 {[%clk 0:01:55]} 23. Na4 {[%clk 0:00:53]}  Qa7 {[%clk 0:01:51]} 24. Kg2 {[%clk 0:00:46]}  axb4 {[%clk 0:01:50]} 25. h6 {[%clk 0:00:38]}  Qxa4 {[%clk 0:01:31]} 26. hxg7 {[%clk 0:00:37]}  Kxg7 {[%clk 0:01:31]} 27. Be5 {[%clk 0:00:24]}  Qxd1 {[%clk 0:01:30]} 28. Qg5+ {[%clk 0:00:18]}  Kh7 {[%clk 0:01:28]} 29. Qh4+ {[%clk 0:00:07]}  Nh6 {[%clk 0:01:29]} 30. Nf5 {[%clk 0:00:07]}  Qe2+ {[%clk 0:01:21]} 31. Kh1 {[%clk 0:00:07]}  Qf3+ {[%clk 0:01:19]} 32. Kh2 {[%clk 0:00:05]}  exf5 {[%clk 0:01:13]} 0-1


[Site "https://www.chess.com"]

[Event "Titled Tuesday Blitz January 03 Late 2023"]
[White "Blanco Acevedo, Cristobal Jose"]
[Black "Graham, Nathaniel"]
[WhiteFideId "3900525"]
[BlackFideId "2007983"]
[WhiteElo "2310"]
[BlackElo "2262"]
[Result "1-0"]
[Round "11"]
[TimeControl "180+2"]
[Date "2023.01.03"]
[WhiteClock "0:01:55"]
[BlackClock "0:00:03"]

1. e4 {[%clk 0:03:00]}  c5 {[%clk 0:02:59]} 2. Nf3 {[%clk 0:03:00]}  e6 {[%clk 0:03:00]} 3. d4 {[%clk 0:03:00]}  cxd4 {[%clk 0:03:01]} 4. Nxd4 {[%clk 0:03:01]}  Nf6 {[%clk 0:03:02]} 5. Nc3 {[%clk 0:03:01]}  Nc6 {[%clk 0:03:02]} 6. Ndb5 {[%clk 0:03:01]}  d6 {[%clk 0:03:02]} 7. Bf4 {[%clk 0:03:00]}  e5 {[%clk 0:03:02]} 8. Bg5 {[%clk 0:03:00]}  a6 {[%clk 0:03:02]} 9. Bxf6 {[%clk 0:03:00]}  gxf6 {[%clk 0:03:02]} 10. Na3 {[%clk 0:03:00]}  f5 {[%clk 0:03:03]} 11. exf5 {[%clk 0:02:57]}  Bxf5 {[%clk 0:03:01]} 12. Nc4 {[%clk 0:02:53]}  Be6 {[%clk 0:02:58]} 13. Ne3 {[%clk 0:02:52]}  Qb6 {[%clk 0:02:48]} 14. Ncd5 {[%clk 0:02:44]}  Bxd5 {[%clk 0:01:03]} 15. Nxd5 {[%clk 0:02:42]}  Qa5+ {[%clk 0:00:53]} 16. c3 {[%clk 0:02:37]}  Bg7 {[%clk 0:00:48]} 17. Bc4 {[%clk 0:02:31]}  O-O {[%clk 0:00:47]} 18. Qh5 {[%clk 0:02:24]}  Qc5 {[%clk 0:00:35]} 19. Bb3 {[%clk 0:02:21]}  Na5 {[%clk 0:00:33]} 20. Ne7+ {[%clk 0:02:18]}  Kh8 {[%clk 0:00:32]} 21. Bc2 {[%clk 0:02:18]}  e4 {[%clk 0:00:29]} 22. Qxc5 {[%clk 0:02:09]}  dxc5 {[%clk 0:00:29]} 23. O-O-O {[%clk 0:02:05]}  Rfe8 {[%clk 0:00:11]} 24. Nf5 {[%clk 0:02:04]}  Nc4 {[%clk 0:00:04]} 25. Nxg7 {[%clk 0:01:55]}  Kxg7 {[%clk 0:00:04]} 26. b3 {[%clk 0:01:55]}  Na3 {[%clk 0:00:03]} 27. Rd7 {[%clk 0:01:55]} 1-0


[Site "https://www.chess.com"]

[Event "Titled Tuesday Blitz January 03 Late 2023"]
[White "Yashmetov, Mikhail"]
[Black "qiaohu_henry"]
[WhiteFideId "24198900"]
[WhiteElo "2323"]
[BlackElo "2253"]
[Result "1-0"]
[Round "11"]
[TimeControl "180+2"]
[Date "2023.01.03"]
[WhiteClock "0:00:55"]
[BlackClock "0:00:05"]

1. d4 {[%clk 0:03:00]}  e6 {[%clk 0:03:00]} 2. c4 {[%clk 0:03:01]}  d5 {[%clk 0:03:00]} 3. g3 {[%clk 0:03:02]}  Nf6 {[%clk 0:02:59]} 4. Bg2 {[%clk 0:03:02]}  c6 {[%clk 0:03:00]} 5. Nf3 {[%clk 0:03:03]}  Be7 {[%clk 0:02:57]} 6. O-O {[%clk 0:03:04]}  Ne4 {[%clk 0:02:57]} 7. b3 {[%clk 0:03:03]}  O-O {[%clk 0:02:56]} 8. Ba3 {[%clk 0:03:02]}  Bxa3 {[%clk 0:02:56]} 9. Nxa3 {[%clk 0:03:02]}  Nd7 {[%clk 0:02:56]} 10. Nc2 {[%clk 0:03:03]}  f5 {[%clk 0:02:54]} 11. Nce1 {[%clk 0:03:03]}  Qf6 {[%clk 0:02:52]} 12. Nd3 {[%clk 0:03:02]}  a5 {[%clk 0:02:40]} 13. Nfe5 {[%clk 0:03:02]}  Nxe5 {[%clk 0:02:40]} 14. Nxe5 {[%clk 0:03:03]}  dxc4 {[%clk 0:02:37]} 15. bxc4 {[%clk 0:03:02]}  c5 {[%clk 0:02:36]} 16. e3 {[%clk 0:03:02]}  b6 {[%clk 0:01:58]} 17. Qc2 {[%clk 0:02:55]}  Qe7 {[%clk 0:01:18]} 18. Bxe4 {[%clk 0:02:24]}  fxe4 {[%clk 0:01:19]} 19. Qxe4 {[%clk 0:02:25]}  Bb7 {[%clk 0:01:17]} 20. d5 {[%clk 0:02:25]}  exd5 {[%clk 0:01:16]} 21. cxd5 {[%clk 0:02:26]}  Rad8 {[%clk 0:01:04]} 22. Rad1 {[%clk 0:02:24]}  Qd6 {[%clk 0:00:36]} 23. Nc4 {[%clk 0:02:15]}  Qf6 {[%clk 0:00:31]} 24. Qe6+ {[%clk 0:02:03]}  Qxe6 {[%clk 0:00:29]} 25. dxe6 {[%clk 0:02:03]}  Ba6 {[%clk 0:00:25]} 26. e7 {[%clk 0:01:47]}  Rxd1 {[%clk 0:00:23]} 27. exf8=Q+ {[%clk 0:01:46]}  Kxf8 {[%clk 0:00:24]} 28. Rxd1 {[%clk 0:01:47]}  Bxc4 {[%clk 0:00:24]} 29. Rd6 {[%clk 0:01:36]}  b5 {[%clk 0:00:17]} 30. a4 {[%clk 0:01:01]}  bxa4 {[%clk 0:00:04]} 31. Rc6 {[%clk 0:01:01]}  a3 {[%clk 0:00:04]} 32. Rxc5 {[%clk 0:01:01]}  Bb3 {[%clk 0:00:04]} 33. Rxa5 {[%clk 0:00:57]}  a2 {[%clk 0:00:03]} 34. e4 {[%clk 0:00:57]}  Kf7 {[%clk 0:00:03]} 35. f4 {[%clk 0:00:57]}  Ke6 {[%clk 0:00:03]} 36. Kf2 {[%clk 0:00:58]}  Kf7 {[%clk 0:00:04]} 37. Ke3 {[%clk 0:00:58]}  Kf6 {[%clk 0:00:05]} 38. Kd4 {[%clk 0:00:59]}  Kf7 {[%clk 0:00:06]} 39. Ra6 {[%clk 0:00:58]}  h6 {[%clk 0:00:05]} 40. Ke5 {[%clk 0:00:58]}  Ke7 {[%clk 0:00:05]} 41. Ra7+ {[%clk 0:00:58]}  Ke8 {[%clk 0:00:05]} 42. g4 {[%clk 0:00:56]}  Kf8 {[%clk 0:00:03]} 43. f5 {[%clk 0:00:56]}  Ke8 {[%clk 0:00:04]} 44. h4 {[%clk 0:00:57]}  Kf8 {[%clk 0:00:04]} 45. g5 {[%clk 0:00:57]}  Ke8 {[%clk 0:00:05]} 46. f6 {[%clk 0:00:56]}  gxf6+ {[%clk 0:00:05]} 47. Kxf6 {[%clk 0:00:56]}  hxg5 {[%clk 0:00:05]} 48. hxg5 {[%clk 0:00:56]}  Kf8 {[%clk 0:00:05]} 49. g6 {[%clk 0:00:56]}  Ke8 {[%clk 0:00:05]} 50. e5 {[%clk 0:00:55]}  Kd8 {[%clk 0:00:05]} 51. g7 {[%clk 0:00:55]}  Kc8 {[%clk 0:00:05]} 52. e6 {[%clk 0:00:55]}  Kb8 {[%clk 0:00:05]} 53. Ra3 {[%clk 0:00:55]} 1-0


[Site "https://www.chess.com"]

[Event "Titled Tuesday Blitz January 03 Late 2023"]
[White "Liu, Casper"]
[Black "Papp, Petra"]
[WhiteFideId "1454153"]
[BlackFideId "739049"]
[WhiteElo "2278"]
[BlackElo "2343"]
[Result "1-0"]
[Round "11"]
[TimeControl "180+2"]
[Date "2023.01.03"]
[WhiteClock "0:01:15"]
[BlackClock "0:00:02"]

1. e4 {[%clk 0:02:51]}  c5 {[%clk 0:02:59]} 2. f4 {[%clk 0:02:47]}  d5 {[%clk 0:02:58]} 3. exd5 {[%clk 0:02:47]}  Qxd5 {[%clk 0:02:58]} 4. Nc3 {[%clk 0:02:47]}  Qd8 {[%clk 0:02:56]} 5. Nf3 {[%clk 0:02:47]}  Nf6 {[%clk 0:02:50]} 6. g3 {[%clk 0:02:47]}  Nc6 {[%clk 0:02:49]} 7. Bg2 {[%clk 0:02:47]}  e6 {[%clk 0:02:48]} 8. O-O {[%clk 0:02:47]}  Be7 {[%clk 0:02:48]} 9. d3 {[%clk 0:02:48]}  O-O {[%clk 0:02:49]} 10. Ne5 {[%clk 0:02:48]}  Nxe5 {[%clk 0:02:44]} 11. fxe5 {[%clk 0:02:49]}  Nd5 {[%clk 0:02:44]} 12. Ne4 {[%clk 0:02:35]}  b6 {[%clk 0:02:36]} 13. c4 {[%clk 0:02:26]}  Nc7 {[%clk 0:02:19]} 14. Nf6+ {[%clk 0:02:12]}  gxf6 {[%clk 0:02:17]} 15. Bxa8 {[%clk 0:02:13]}  Nxa8 {[%clk 0:02:15]} 16. exf6 {[%clk 0:02:09]}  Qd4+ {[%clk 0:02:08]} 17. Rf2 {[%clk 0:02:02]}  Bxf6 {[%clk 0:02:03]} 18. Qf3 {[%clk 0:01:58]}  Bg7 {[%clk 0:01:25]} 19. Be3 {[%clk 0:01:57]}  Qd7 {[%clk 0:01:18]} 20. Qxa8 {[%clk 0:01:54]}  Bb7 {[%clk 0:01:17]} 21. Qxa7 {[%clk 0:01:51]}  Qc6 {[%clk 0:01:15]} 22. Kf1 {[%clk 0:01:48]}  Ra8 {[%clk 0:01:11]} 23. Qxa8+ {[%clk 0:01:48]}  Bxa8 {[%clk 0:01:09]} 24. Ke2 {[%clk 0:01:48]}  Bxb2 {[%clk 0:01:04]} 25. Raf1 {[%clk 0:01:47]}  Bd4 {[%clk 0:01:03]} 26. Rxf7 {[%clk 0:01:41]}  Bg7 {[%clk 0:00:24]} 27. Re7 {[%clk 0:01:30]}  Qg2+ {[%clk 0:00:17]} 28. Rf2 {[%clk 0:01:28]}  Qh3 {[%clk 0:00:17]} 29. Re8+ {[%clk 0:01:27]}  Bf8 {[%clk 0:00:16]} 30. Rexf8+ {[%clk 0:01:27]}  Kg7 {[%clk 0:00:16]} 31. Rxa8 {[%clk 0:01:25]}  Qg4+ {[%clk 0:00:15]} 32. Kd2 {[%clk 0:01:20]}  e5 {[%clk 0:00:13]} 33. Ra7+ {[%clk 0:01:20]}  Kg8 {[%clk 0:00:10]} 34. Bh6 {[%clk 0:01:15]}  Kh8 {[%clk 0:00:02]} 35. Rf8+ {[%clk 0:01:15]} 1-0


[Site "https://www.chess.com"]

[Event "Titled Tuesday Blitz January 03 Late 2023"]
[White "Roman, Rodrigo"]
[Black "Smith, Garrett L"]
[WhiteFideId "3701220"]
[BlackFideId "2024829"]
[WhiteElo "2058"]
[BlackElo "2047"]
[Result "0-1"]
[Round "11"]
[TimeControl "180+2"]
[Date "2023.01.03"]
[WhiteClock "0:00:03"]
[BlackClock "0:00:12"]

1. Nf3 {[%clk 0:02:50]}  c5 {[%clk 0:02:51]} 2. b3 {[%clk 0:02:51]}  g6 {[%clk 0:02:51]} 3. Bb2 {[%clk 0:02:51]}  Nf6 {[%clk 0:02:51]} 4. e3 {[%clk 0:02:52]}  Bg7 {[%clk 0:02:51]} 5. Be2 {[%clk 0:02:52]}  d5 {[%clk 0:02:51]} 6. O-O {[%clk 0:02:52]}  Nc6 {[%clk 0:02:51]} 7. d4 {[%clk 0:02:53]}  Ne4 {[%clk 0:02:50]} 8. Nbd2 {[%clk 0:02:52]}  O-O {[%clk 0:02:48]} 9. Bd3 {[%clk 0:02:47]}  Nxd2 {[%clk 0:02:40]} 10. Qxd2 {[%clk 0:02:47]}  Bg4 {[%clk 0:02:39]} 11. Be2 {[%clk 0:02:45]}  Rc8 {[%clk 0:02:35]} 12. c3 {[%clk 0:02:45]}  cxd4 {[%clk 0:02:21]} 13. cxd4 {[%clk 0:02:43]}  Qb6 {[%clk 0:02:19]} 14. h3 {[%clk 0:02:42]}  Bf5 {[%clk 0:02:17]} 15. Rfc1 {[%clk 0:02:41]}  Rfd8 {[%clk 0:02:11]} 16. Ba3 {[%clk 0:02:41]}  Qa5 {[%clk 0:01:40]} 17. Qxa5 {[%clk 0:02:27]}  Nxa5 {[%clk 0:01:41]} 18. Bxe7 {[%clk 0:02:27]}  Re8 {[%clk 0:01:35]} 19. Bc5 {[%clk 0:02:23]}  b6 {[%clk 0:01:33]} 20. Ba6 {[%clk 0:02:24]}  bxc5 {[%clk 0:01:30]} 21. Bxc8 {[%clk 0:02:23]}  Rxc8 {[%clk 0:01:30]} 22. b4 {[%clk 0:02:21]}  cxb4 {[%clk 0:01:25]} 23. Rxc8+ {[%clk 0:02:21]}  Bxc8 {[%clk 0:01:25]} 24. Rb1 {[%clk 0:02:22]}  Nc6 {[%clk 0:01:23]} 25. Rc1 {[%clk 0:02:22]}  Bd7 {[%clk 0:01:24]} 26. Rc5 {[%clk 0:02:23]}  Bf8 {[%clk 0:01:18]} 27. Rc2 {[%clk 0:02:18]}  a5 {[%clk 0:01:13]} 28. Ne1 {[%clk 0:02:13]}  a4 {[%clk 0:01:12]} 29. Nd3 {[%clk 0:02:13]}  Bf5 {[%clk 0:00:59]} 30. Rxc6 {[%clk 0:02:11]}  Bxd3 {[%clk 0:00:58]} 31. e4 {[%clk 0:01:57]}  Bc4 {[%clk 0:00:55]} 32. exd5 {[%clk 0:01:56]}  Bxa2 {[%clk 0:00:42]} 33. d6 {[%clk 0:01:55]}  Be6 {[%clk 0:00:38]} 34. Rb6 {[%clk 0:01:52]}  b3 {[%clk 0:00:36]} 35. d5 {[%clk 0:01:51]}  Bf5 {[%clk 0:00:29]} 36. g4 {[%clk 0:01:48]}  Bd7 {[%clk 0:00:25]} 37. Rb7 {[%clk 0:01:29]}  Bxd6 {[%clk 0:00:21]} 38. Rxd7 {[%clk 0:01:29]}  b2 {[%clk 0:00:20]} 39. Rxd6 {[%clk 0:01:29]}  b1=Q+ {[%clk 0:00:20]} 40. Kg2 {[%clk 0:01:29]}  a3 {[%clk 0:00:21]} 41. Ra6 {[%clk 0:01:27]}  Qb3 {[%clk 0:00:20]} 42. d6 {[%clk 0:01:26]}  Qd5+ {[%clk 0:00:18]} 43. f3 {[%clk 0:01:10]}  a2 {[%clk 0:00:19]} 44. d7 {[%clk 0:01:09]}  Kg7 {[%clk 0:00:17]} 45. Kg3 {[%clk 0:01:00]}  h5 {[%clk 0:00:16]} 46. Rxa2 {[%clk 0:00:55]}  Qd6+ {[%clk 0:00:16]} 47. f4 {[%clk 0:00:38]}  Qxd7 {[%clk 0:00:17]} 48. Rf2 {[%clk 0:00:36]}  Qd1 {[%clk 0:00:16]} 49. f5 {[%clk 0:00:33]}  Qg1+ {[%clk 0:00:16]} 50. Kf3 {[%clk 0:00:32]}  Qh1+ {[%clk 0:00:16]} 51. Kg3 {[%clk 0:00:30]}  Kh6 {[%clk 0:00:16]} 52. fxg6 {[%clk 0:00:29]}  fxg6 {[%clk 0:00:16]} 53. gxh5 {[%clk 0:00:28]}  Kxh5 {[%clk 0:00:15]} 54. Rf4 {[%clk 0:00:23]}  Qe1+ {[%clk 0:00:16]} 55. Kg2 {[%clk 0:00:22]}  Qe2+ {[%clk 0:00:16]} 56. Kg3 {[%clk 0:00:22]}  Qe3+ {[%clk 0:00:16]} 57. Rf3 {[%clk 0:00:21]}  Qe5+ {[%clk 0:00:16]} 58. Kg2 {[%clk 0:00:20]}  g5 {[%clk 0:00:17]} 59. Rg3 {[%clk 0:00:20]}  Kh4 {[%clk 0:00:17]} 60. Rg4+ {[%clk 0:00:20]}  Kh5 {[%clk 0:00:17]} 61. Kg1 {[%clk 0:00:19]}  Qe3+ {[%clk 0:00:17]} 62. Kg2 {[%clk 0:00:19]}  Qe2+ {[%clk 0:00:17]} 63. Kg3 {[%clk 0:00:20]}  Qe1+ {[%clk 0:00:17]} 64. Kg2 {[%clk 0:00:19]}  Qd2+ {[%clk 0:00:17]} 65. Kg3 {[%clk 0:00:19]}  Qe1+ {[%clk 0:00:17]} 66. Kg2 {[%clk 0:00:19]}  Kg6 {[%clk 0:00:17]} 67. Kf3 {[%clk 0:00:14]}  Kf5 {[%clk 0:00:17]} 68. Kg2 {[%clk 0:00:13]}  Qe2+ {[%clk 0:00:17]} 69. Kg3 {[%clk 0:00:13]}  Qe3+ {[%clk 0:00:17]} 70. Kg2 {[%clk 0:00:14]}  Qd2+ {[%clk 0:00:17]} 71. Kg3 {[%clk 0:00:15]}  Qe1+ {[%clk 0:00:16]} 72. Kg2 {[%clk 0:00:15]}  Qa1 {[%clk 0:00:16]} 73. Kg3 {[%clk 0:00:16]}  Qa2 {[%clk 0:00:14]} 74. Kf3 {[%clk 0:00:06]}  Qb3+ {[%clk 0:00:13]} 75. Kg2 {[%clk 0:00:06]}  Qc3 {[%clk 0:00:13]} 76. Kh2 {[%clk 0:00:05]}  Qf3 {[%clk 0:00:12]} 77. Rg3 {[%clk 0:00:03]}  Qf4 {[%clk 0:00:12]} 0-1


[Site "https://www.chess.com"]

[Event "Titled Tuesday Blitz January 03 Late 2023"]
[White "Van den Dikkenberg, Erik"]
[Black "Souza, Gustavo Horokoski De"]
[WhiteFideId "1005880"]
[BlackFideId "2146584"]
[WhiteElo "2091"]
[BlackElo "1943"]
[Result "1-0"]
[Round "11"]
[TimeControl "180+2"]
[Date "2023.01.03"]
[WhiteClock "0:00:34"]
[BlackClock "0:00:02"]

1. e4 {[%clk 0:03:00]}  e6 {[%clk 0:02:56]} 2. d4 {[%clk 0:03:00]}  d5 {[%clk 0:02:56]} 3. Nd2 {[%clk 0:03:01]}  Nc6 {[%clk 0:02:56]} 4. c3 {[%clk 0:03:00]}  e5 {[%clk 0:02:54]} 5. exd5 {[%clk 0:02:58]}  Qxd5 {[%clk 0:02:54]} 6. Ngf3 {[%clk 0:02:54]}  exd4 {[%clk 0:02:52]} 7. cxd4 {[%clk 0:02:48]}  Bd6 {[%clk 0:02:45]} 8. Bc4 {[%clk 0:02:43]}  Qh5 {[%clk 0:02:44]} 9. Qb3 {[%clk 0:02:26]}  Bd7 {[%clk 0:01:58]} 10. Ne4 {[%clk 0:02:15]}  Bb4+ {[%clk 0:01:42]} 11. Bd2 {[%clk 0:02:07]}  Bxd2+ {[%clk 0:01:41]} 12. Nexd2 {[%clk 0:02:07]}  Na5 {[%clk 0:01:27]} 13. Qb4 {[%clk 0:01:54]}  Nxc4 {[%clk 0:01:26]} 14. Nxc4 {[%clk 0:01:42]}  O-O-O {[%clk 0:01:10]} 15. O-O {[%clk 0:01:38]}  Bc6 {[%clk 0:01:07]} 16. Nce5 {[%clk 0:01:37]}  Bd5 {[%clk 0:01:01]} 17. Rac1 {[%clk 0:01:28]}  f6 {[%clk 0:00:56]} 18. Qc5 {[%clk 0:01:24]}  c6 {[%clk 0:00:49]} 19. Qxa7 {[%clk 0:01:08]}  fxe5 {[%clk 0:00:43]} 20. Nxe5 {[%clk 0:01:08]}  Nf6 {[%clk 0:00:27]} 21. Qa8+ {[%clk 0:00:57]}  Kc7 {[%clk 0:00:27]} 22. Qa5+ {[%clk 0:00:57]}  Kc8 {[%clk 0:00:27]} 23. f3 {[%clk 0:00:42]}  Nd7 {[%clk 0:00:17]} 24. Nxc6 {[%clk 0:00:36]}  bxc6 {[%clk 0:00:02]} 25. Rxc6+ {[%clk 0:00:36]}  Kb8 {[%clk 0:00:02]} 26. Qb5+ {[%clk 0:00:34]} 1-0


[Site "https://www.chess.com"]

[Event "Titled Tuesday Blitz January 03 Late 2023"]
[White "Sariego Figueredo, Wilfredo"]
[Black "Tamarozi, Isabelle"]
[WhiteFideId "3500080"]
[BlackFideId "2132400"]
[WhiteElo "2318"]
[BlackElo "1982"]
[Result "0-1"]
[Round "11"]
[TimeControl "180+2"]
[Date "2023.01.03"]
[WhiteClock "0:00:01"]
[BlackClock "0:00:13"]

1. d4 {[%clk 0:02:58]}  Nf6 {[%clk 0:02:56]} 2. Bf4 {[%clk 0:02:56]}  g6 {[%clk 0:02:53]} 3. Nc3 {[%clk 0:02:55]}  d5 {[%clk 0:02:45]} 4. Nb5 {[%clk 0:02:45]}  Na6 {[%clk 0:02:45]} 5. e3 {[%clk 0:02:43]}  Bg7 {[%clk 0:02:39]} 6. Nc3 {[%clk 0:02:36]}  O-O {[%clk 0:02:34]} 7. Bxa6 {[%clk 0:02:33]}  bxa6 {[%clk 0:02:35]} 8. Nf3 {[%clk 0:02:33]}  c5 {[%clk 0:02:30]} 9. dxc5 {[%clk 0:02:32]}  Qa5 {[%clk 0:02:28]} 10. O-O {[%clk 0:02:28]}  Qxc5 {[%clk 0:02:27]} 11. Be5 {[%clk 0:02:25]}  Bg4 {[%clk 0:02:22]} 12. h3 {[%clk 0:02:17]}  Bxf3 {[%clk 0:02:11]} 13. Qxf3 {[%clk 0:02:18]}  Rfd8 {[%clk 0:02:03]} 14. Rfd1 {[%clk 0:02:10]}  Rac8 {[%clk 0:02:00]} 15. Rd4 {[%clk 0:01:48]}  Bf8 {[%clk 0:01:27]} 16. Rb1 {[%clk 0:01:26]}  Ne4 {[%clk 0:01:22]} 17. Nxe4 {[%clk 0:01:17]}  dxe4 {[%clk 0:01:21]} 18. Qxe4 {[%clk 0:01:14]}  Rxd4 {[%clk 0:01:15]} 19. Bxd4 {[%clk 0:01:09]}  Qxc2 {[%clk 0:01:14]} 20. Qxc2 {[%clk 0:01:09]}  Rxc2 {[%clk 0:01:14]} 21. Bxa7 {[%clk 0:01:09]}  Bg7 {[%clk 0:01:13]} 22. Rd1 {[%clk 0:00:54]}  Bxb2 {[%clk 0:01:11]} 23. Rd8+ {[%clk 0:00:48]}  Kg7 {[%clk 0:01:11]} 24. Rd7 {[%clk 0:00:44]}  Be5 {[%clk 0:01:00]} 25. f4 {[%clk 0:00:35]}  Bd6 {[%clk 0:00:54]} 26. Bd4+ {[%clk 0:00:31]}  f6 {[%clk 0:00:54]} 27. a4 {[%clk 0:00:17]}  Ra2 {[%clk 0:00:54]} 28. Ra7 {[%clk 0:00:17]}  Rxa4 {[%clk 0:00:50]} 29. Kf2 {[%clk 0:00:17]}  Ra2+ {[%clk 0:00:48]} 30. Kf3 {[%clk 0:00:17]}  h5 {[%clk 0:00:48]} 31. g4 {[%clk 0:00:17]}  hxg4+ {[%clk 0:00:48]} 32. hxg4 {[%clk 0:00:18]}  Kf7 {[%clk 0:00:48]} 33. g5 {[%clk 0:00:14]}  fxg5 {[%clk 0:00:37]} 34. fxg5 {[%clk 0:00:15]}  Ra5 {[%clk 0:00:36]} 35. Kg4 {[%clk 0:00:10]}  Ke6 {[%clk 0:00:36]} 36. Ra8 {[%clk 0:00:06]}  Ra2 {[%clk 0:00:33]} 37. Kf3 {[%clk 0:00:06]}  a5 {[%clk 0:00:31]} 38. Rf8 {[%clk 0:00:04]}  a4 {[%clk 0:00:30]} 39. Rg8 {[%clk 0:00:02]}  Kf5 {[%clk 0:00:28]} 40. e4+ {[%clk 0:00:01]}  Kxg5 {[%clk 0:00:27]} 41. Be3+ {[%clk 0:00:01]}  Kf6 {[%clk 0:00:27]} 42. Bd4+ {[%clk 0:00:01]}  Ke6 {[%clk 0:00:13]} 43. Rxg6+ {[%clk 0:00:01]}  Kd7 {[%clk 0:00:13]} 0-1


[Site "https://www.chess.com"]

[Event "Titled Tuesday Blitz January 03 Late 2023"]
[White "Sailer, Mike"]
[Black "Schill, William"]
[WhiteFideId "2012901"]
[BlackFideId "2016710"]
[WhiteElo "2109"]
[BlackElo "2147"]
[Result "1-0"]
[Round "11"]
[TimeControl "180+2"]
[Date "2023.01.03"]
[WhiteClock "0:00:20"]
[BlackClock "0:00:08"]

1. d4 {[%clk 0:03:00]}  Nf6 {[%clk 0:02:55]} 2. Bf4 {[%clk 0:02:59]}  g6 {[%clk 0:02:53]} 3. Nf3 {[%clk 0:02:56]}  Bg7 {[%clk 0:02:53]} 4. e3 {[%clk 0:02:57]}  O-O {[%clk 0:02:53]} 5. Be2 {[%clk 0:02:57]}  d6 {[%clk 0:02:53]} 6. O-O {[%clk 0:02:56]}  c5 {[%clk 0:02:47]} 7. c4 {[%clk 0:02:55]}  Nh5 {[%clk 0:02:19]} 8. Bg5 {[%clk 0:02:53]}  h6 {[%clk 0:02:19]} 9. Bh4 {[%clk 0:02:53]}  g5 {[%clk 0:02:14]} 10. Bg3 {[%clk 0:02:49]}  Nxg3 {[%clk 0:02:11]} 11. hxg3 {[%clk 0:02:49]}  Nc6 {[%clk 0:02:06]} 12. Nc3 {[%clk 0:02:40]}  Bg4 {[%clk 0:01:29]} 13. a3 {[%clk 0:02:29]}  Rc8 {[%clk 0:01:20]} 14. Rb1 {[%clk 0:02:21]}  Bxf3 {[%clk 0:01:16]} 15. Bxf3 {[%clk 0:02:14]}  cxd4 {[%clk 0:01:16]} 16. Bxc6 {[%clk 0:02:14]}  Rxc6 {[%clk 0:01:15]} 17. exd4 {[%clk 0:02:12]}  Rxc4 {[%clk 0:01:15]} 18. Qb3 {[%clk 0:01:58]}  d5 {[%clk 0:00:30]} 19. Qxb7 {[%clk 0:01:52]}  e6 {[%clk 0:00:30]} 20. Qxa7 {[%clk 0:01:29]}  Bxd4 {[%clk 0:00:29]} 21. Qa6 {[%clk 0:01:20]}  Bxc3 {[%clk 0:00:24]} 22. bxc3 {[%clk 0:01:20]}  Rxc3 {[%clk 0:00:24]} 23. Rb7 {[%clk 0:01:06]}  Qa8 {[%clk 0:00:18]} 24. Ra7 {[%clk 0:01:03]}  Qc6 {[%clk 0:00:18]} 25. Qa5 {[%clk 0:00:58]}  Rc8 {[%clk 0:00:13]} 26. Kh2 {[%clk 0:00:46]}  Rc1 {[%clk 0:00:12]} 27. Rxc1 {[%clk 0:00:46]}  Qxc1 {[%clk 0:00:12]} 28. a4 {[%clk 0:00:31]}  Qc5 {[%clk 0:00:11]} 29. Qa6 {[%clk 0:00:27]}  Rc6 {[%clk 0:00:08]} 30. Qb7 {[%clk 0:00:20]} 1-0


[Site "https://www.chess.com"]

[Event "Titled Tuesday Blitz January 03 Late 2023"]
[White "Sloan, Julia Elizabeth"]
[Black "Cruz Gomez, Miguel Angel"]
[WhiteFideId "2018950"]
[BlackFideId "5137160"]
[WhiteElo "2087"]
[BlackElo "1950"]
[Result "0-1"]
[Round "11"]
[TimeControl "180+2"]
[Date "2023.01.03"]
[WhiteClock "0:02:11"]
[BlackClock "0:02:08"]

1. d4 {[%clk 0:02:59]}  d5 {[%clk 0:02:59]} 2. c4 {[%clk 0:02:58]}  e5 {[%clk 0:02:59]} 3. e3 {[%clk 0:02:56]}  Bb4+ {[%clk 0:02:45]} 4. Nc3 {[%clk 0:02:54]}  exd4 {[%clk 0:02:45]} 5. exd4 {[%clk 0:02:53]}  Ne7 {[%clk 0:02:45]} 6. Bd3 {[%clk 0:02:47]}  Nbc6 {[%clk 0:02:44]} 7. Ne2 {[%clk 0:02:46]}  Bg4 {[%clk 0:02:43]} 8. f3 {[%clk 0:02:45]}  Bh5 {[%clk 0:02:43]} 9. O-O {[%clk 0:02:44]}  Qd7 {[%clk 0:02:41]} 10. Nf4 {[%clk 0:02:42]}  Bg6 {[%clk 0:02:40]} 11. Nxg6 {[%clk 0:02:42]}  hxg6 {[%clk 0:02:40]} 12. c5 {[%clk 0:02:41]}  Nxd4 {[%clk 0:02:36]} 13. Bxg6 {[%clk 0:02:38]}  Bxc5 {[%clk 0:02:28]} 14. Be3 {[%clk 0:02:32]}  Nxg6 {[%clk 0:02:27]} 15. Bxd4 {[%clk 0:02:32]}  Bd6 {[%clk 0:02:24]} 16. Bxg7 {[%clk 0:02:30]}  Bxh2+ {[%clk 0:02:22]} 17. Kf2 {[%clk 0:02:29]}  O-O-O {[%clk 0:02:12]} 18. Bxh8 {[%clk 0:02:28]}  Rxh8 {[%clk 0:02:13]} 19. Qxd5 {[%clk 0:02:25]}  Qe7 {[%clk 0:02:12]} 20. Rae1 {[%clk 0:02:20]}  Bg3+ {[%clk 0:02:09]} 21. Kg1 {[%clk 0:02:13]}  Rh1+ {[%clk 0:02:07]} 22. Kxh1 {[%clk 0:02:12]}  Qh4+ {[%clk 0:02:08]} 23. Kg1 {[%clk 0:02:11]}  Qh2# {[%clk 0:02:08]} 0-1


[Site "https://www.chess.com"]